bitfinex/quotes_ETHUSD_20240910
["timestamp","ask_amount","ask_price","bid_price","bid_amount"]
[1725959704487,3.55644179,2351.5,2350.6,0.08506908]
[1725959704800,0.68133378,2351.4,2350.6,0.08506908]
[1725959705113,0.10633631,2351.3,2350.6,0.08506908]
[1725959706923,0.10633631,2351.3,2350.4,3.25689604]
[1725959707092,0.10633631,2351.3,2350.5,20.08]
[1725959707295,0.10633236,2351.4,2350.6,0.08506589]
[1725959707501,0.10633236,2351.4,2350.6,2.42726208]
[1725959707824,0.10632507,2351.9,2350.8,3.25689604]
[1725959708039,3.25689604,2351.8,2350.9,0.46574931]
[1725959708237,0.1063247,2351.7,2350.9,0.46574931]
[1725959709298,0.10632471,2351.9,2350.9,0.46574931]
[1725959709809,3.10632471,2351.9,2350.9,0.46574931]
[1725959710014,0.63632208,2351.8,2350.9,0.46574931]
[1725959710341,0.10632471,2351.7,2350.9,0.46574931]
[1725959710496,3.10632471,2351.7,2350.9,0.46574931]
[1725959710700,3.10632471,2351.7,2350.8,19.53]
[1725959711230,3.25689604,2351.6,2350.8,19.53]
[1725959711413,0.10633198,2351.5,2350.8,19.53]
[1725959712139,3.10633198,2351.5,2350.8,19.53]
[1725959713280,3.10633198,2351.5,2350.7,7.48]
[1725959713486,0.6363228,2351.4,2350.7,7.48]
[1725959713794,0.10633235,2351.3,2350.5,19.53]
[1725959713943,0.10633235,2351.3,2350.6,0.55]
[1725959716584,0.10633349,2351.4,2350.6,0.55]
[1725959716784,0.10633349,2351.4,2350.7,2.008]
[1725959719027,0.10633357,2351.6,2350.7,2.008]
[1725959719156,0.10633357,2351.6,2350.6,20.08]
[1725959722198,0.10633357,2351.6,2350.7,0.08506564]
[1725959722498,0.10633357,2351.6,2350.6,23.33689604]
[1725959722685,0.10633357,2351.6,2350.6,20.08]
[1725959722865,0.10633357,2351.6,2350.7,2.46189527]
[1725959722866,0.74265653,2351.6,2350.7,2.46189527]
[1725959723066,0.74265653,2351.6,2350.7,2.008]
[1725959724273,2.24578299,2351.6,2350.7,2.008]
[1725959724477,1.60946003,2351.6,2350.7,2.008]
[1725959724678,1.50312646,2351.6,2350.7,2.008]
[1725959726295,1.50312646,2351.6,2350.8,0.45389535]
[1725959726483,1.50312646,2351.6,2350.7,2.008]
[1725959726682,1.50312646,2351.6,2350.8,0.45389283]
[1725959726898,1.50312646,2351.6,2350.7,2.008]
[1725959727083,1.50312646,2351.6,2350.8,0.45389281]
[1725959727281,1.50312646,2351.6,2350.7,2.008]
[1725959727485,1.50312646,2351.4,2350.8,0.45388737]
[1725959727672,0.10633672,2351.3,2350.6,19.53]
[1725959727875,0.10633672,2351.3,2350.7,0.45388915]
[1725959728098,0.10633672,2351.3,2350.8,0.45388915]
[1725959728351,0.10633672,2351.3,2350.7,2.10331265]
[1725959728490,0.10633672,2351.3,2350.8,0.45388889]
[1725959728701,1.50312646,2351.6,2350.7,2.10331265]
[1725959728891,1.50312646,2351.6,2350.8,2.62574556]
[1725959729101,3.0,2351.9,2350.6,19.53]
[1725959729102,1.50312646,2351.4,2350.6,19.53]
[1725959729307,0.10635165,2351.3,2350.7,0.45391976]
[1725959729601,0.10635165,2351.3,2350.6,19.53]
[1725959729780,0.10635165,2351.3,2350.7,0.53899643]
[1725959729982,1.50312646,2351.8,2350.8,0.53899239]
[1725959730289,0.10633394,2351.7,2350.8,0.08507032]
[1725959730691,4.76982039,2351.9,2350.8,0.08507032]
[1725959730692,0.10632445,2351.9,2351.2,1.50312646]
[1725959730885,0.10632445,2351.9,2351.3,0.08504967]
[1725959731913,0.10632445,2351.9,2351.1,0.08504976]
[1725959732122,1.60945091,2351.9,2351.1,2.90631265]
[1725959733577,1.60945091,2351.9,2351.2,0.08504987]
[1725959733780,0.10632445,2351.9,2351.2,0.08504987]
[1725959734016,3.10631218,2352.1,2351.4,1.50312646]
[1725959734198,3.10631218,2352.1,2351.5,0.08504073]
[1725959734779,3.10629724,2352.2,2351.6,1.50312646]
[1725959734987,3.10629724,2352.2,2351.7,0.08503614]
[1725959735186,3.10629724,2352.2,2351.5,0.08503613]
[1725959735981,3.0,2352.1,2351.5,0.08503613]
[1725959739744,1.76982039,2352.6,2351.7,3.25453647]
[1725959740050,0.10628394,2352.5,2351.8,0.4654808]
[1725959740220,0.10628394,2352.5,2351.8,0.38045365]
[1725959740603,0.10628394,2352.5,2351.6,0.55]
[1725959740905,0.10628402,2352.6,2351.6,0.55]
[1725959741102,3.25453647,2352.5,2351.5,7.48]
[1725959741319,5.02435686,2352.3,2351.5,7.48]
[1725959741542,3.10630867,2352.2,2351.5,7.48]
[1725959741705,4.87612906,2352.2,2351.5,7.48]
[1725959742351,1.76982039,2352.1,2351.2,7.48]
[1725959742559,1.87614151,2352.0,2351.2,7.48]
[1725959742905,4.87614151,2352.0,2351.2,7.48]
[1725959743407,3.25453647,2351.7,2350.5,15.56453647]
[1725959743559,3.1063392,2351.6,2350.5,4.31961252]
[1725959743716,0.63608757,2351.5,2350.6,0.43196125]
[1725959744065,0.10633907,2351.4,2350.6,0.43196125]
[1725959747649,0.10633907,2351.4,2350.3,6.31961252]
[1725959747650,3.10633907,2351.4,2350.3,6.31961252]
[1725959747845,4.87615946,2351.4,2350.2,4.06507605]
[1725959748050,4.13121482,2351.3,2350.3,0.73196125]
[1725959748277,0.10635459,2351.2,2350.4,0.08508367]
[1725959748482,3.10635459,2351.2,2350.4,0.08508367]
[1725959748648,0.10635459,2351.2,2350.4,3.03496201]
[1725959750364,0.10635459,2351.2,2350.2,7.48]
[1725959750991,0.10635459,2351.2,2350.3,0.08507968]
[1725959751147,0.10635459,2351.2,2350.3,3.33961615]
[1725959753409,3.87667835,2351.3,2350.3,3.33961615]
[1725959753410,3.0,2351.3,2350.5,3.25453647]
[1725959753572,0.10634336,2351.4,2350.6,1.0155203]
[1725959753954,0.10634336,2351.4,2350.6,0.93045365]
[1725959754666,0.10633325,2351.6,2350.6,0.93045365]
[1725959754873,0.80385312,2351.6,2350.7,0.41849901]
[1725959755073,3.80385312,2351.6,2350.7,0.41849901]
[1725959755410,3.80385312,2351.6,2350.8,0.08506659]
[1725959755703,3.80385312,2351.6,2350.6,0.55]
[1725959755704,0.55736735,2351.5,2350.6,0.55]
[1725959755911,0.10633328,2351.4,2350.6,0.55]
[1725959757175,0.10633328,2351.4,2350.7,0.08506664]
[1725959757770,0.10633328,2351.4,2350.6,0.55]
[1725959757972,0.10633328,2351.4,2350.6,1.67845365]
[1725959759407,0.10633328,2351.4,2350.6,1.12845365]
[1725959759607,0.10633328,2351.4,2350.5,7.48]
[1725959760880,0.10633328,2351.4,2350.5,27.01]
[1725959761277,3.25453647,2351.3,2350.5,27.01]
[1725959761478,3.10635189,2351.2,2350.5,27.01]
[1725959761783,0.63608884,2351.1,2350.5,27.01]
[1725959761983,0.10635183,2351.0,2350.5,27.01]
[1725959763041,3.25453647,2350.9,2350.1,7.48]
[1725959763334,0.4424573,2350.8,2350.1,7.48]
[1725959763483,0.10636744,2350.7,2350.1,7.48]
[1725959763684,0.10636744,2350.7,2349.8,7.5689588]
[1725959764332,0.10636744,2350.7,2349.9,0.08509344]
[1725959764631,3.10636296,2351.0,2349.9,6.38348878]
[1725959766705,3.10636296,2351.0,2350.0,0.55]
[1725959766920,3.10636296,2351.0,2350.1,0.08508611]
[1725959767131,0.69969883,2350.9,2350.1,0.77843426]
[1725959767341,0.10635739,2350.8,2350.1,0.77843426]
[1725959767897,0.10635739,2350.8,2350.1,0.69334815]
[1725959768597,0.10635739,2350.8,2350.2,0.08508618]
[1725959768794,0.10635739,2350.8,2350.2,0.54338326]
[1725959768995,0.10635739,2350.8,2350.3,0.08508464]
[1725959769223,0.1063558,2350.9,2350.3,0.08508464]
[1725959769500,0.1063558,2350.9,2350.2,0.45829708]
[1725959770112,0.63608884,2351.1,2350.1,0.69334815]
[1725959770113,0.1063559,2351.0,2350.1,0.69334815]
[1725959770833,3.1063559,2351.0,2349.9,6.29839534]
[1725959772110,3.1063559,2351.0,2349.9,3.04385887]
[1725959772917,3.1063559,2351.0,2350.0,19.53]
[1725959773352,3.1063559,2351.0,2350.1,3.33962606]
[1725959773499,0.1063559,2351.0,2350.2,1.9136634]
[1725959773807,0.1063559,2351.0,2350.3,3.33961956]
[1725959774357,0.10634987,2351.2,2350.5,3.25453647]
[1725959774631,3.10634987,2351.4,2350.7,3.25453647]
[1725959774844,3.0,2351.4,2350.8,0.08506683]
[1725959775197,0.10633364,2351.3,2350.7,3.25453647]
[1725959775393,0.10633364,2351.3,2350.5,3.25453647]
[1725959775809,0.10633364,2351.3,2350.3,3.25453647]
[1725959776001,0.10633364,2351.3,2350.4,1.26481999]
[1725959776002,3.446967,2351.3,2350.4,1.26481999]
[1725959776201,0.10634317,2351.2,2350.4,1.26481999]
[1725959776602,0.10634317,2351.2,2350.5,0.08507449]
[1725959776815,0.10634317,2351.2,2350.4,1.26481999]
[1725959777001,0.78104082,2351.2,2350.4,1.26481999]
[1725959778101,0.78104082,2351.2,2350.5,3.25453647]
[1725959778303,0.10634317,2351.2,2350.5,3.25453647]
[1725959779004,3.0,2351.4,2350.7,3.25453647]
[1725959779199,3.0,2351.4,2350.8,0.41051833]
[1725959779841,0.10633186,2351.3,2350.8,0.41051833]
[1725959780002,0.10633186,2351.3,2350.8,0.32545365]
[1725959780202,3.1063332,2351.4,2350.8,0.41052021]
[1725959780697,3.1063332,2351.4,2350.8,0.32545365]
[1725959781213,3.1063332,2351.4,2350.8,0.41052025]
[1725959781537,3.0,2351.4,2350.8,0.41052025]
[1725959782037,0.10633134,2351.3,2350.8,0.32545365]
[1725959782237,0.4169644,2351.3,2350.5,3.25453647]
[1725959782537,0.10633134,2351.3,2350.5,3.25453647]
[1725959782950,0.10633134,2351.3,2350.6,0.08506666]
[1725959783125,3.10633222,2351.4,2350.6,0.08506666]
[1725959783331,3.10633222,2351.4,2350.7,3.25453647]
[1725959784204,0.10633333,2351.3,2350.7,3.25453647]
[1725959784639,0.10633333,2351.3,2350.8,0.08506669]
[1725959785228,0.10633333,2351.3,2350.7,3.25453647]
[1725959786065,3.0,2351.4,2350.8,0.08506682]
[1725959786265,3.0,2351.4,2350.8,0.41052047]
[1725959787938,3.0,2351.4,2350.8,0.32545365]
[1725959788138,3.0,2351.4,2350.9,0.08506073]
[1725959788512,3.10632592,2351.6,2350.9,3.3395972]
[1725959788672,3.0,2351.7,2351.1,3.25453647]
[1725959788825,0.1063128,2351.7,2351.2,0.08505024]
[1725959789173,0.1063128,2351.7,2351.2,0.51065942]
[1725959789776,0.1063128,2351.7,2351.3,0.08505028]
[1725959790067,0.10631286,2351.8,2351.3,0.08505028]
[1725959790225,0.10631286,2351.8,2351.2,0.42560918]
[1725959790426,0.81467283,2351.8,2351.0,0.91650509]
[1725959790666,0.10631344,2351.7,2351.0,0.91650509]
[1725959790973,1.87613383,2351.7,2350.7,3.6977118]
[1725959791266,0.10631344,2351.7,2350.8,0.55]
[1725959791442,5.65532986,2351.7,2350.9,0.38045365]
[1725959791626,3.88550947,2351.7,2350.9,0.38045365]
[1725959791972,5.65532986,2351.7,2350.9,0.38045365]
[1725959792136,3.88550947,2351.7,2350.9,0.38045365]
[1725959795044,0.63636898,2351.6,2350.9,0.38045365]
[1725959795285,0.10632287,2351.5,2350.9,0.38045365]
[1725959797080,0.08632287,2351.5,2350.9,0.38045365]
[1725959797239,0.08632261,2351.6,2350.9,0.38045365]
[1725959797444,0.64985651,2351.6,2350.9,0.38045365]
[1725959797955,0.10632263,2351.8,2350.9,0.38045365]
[1725959800442,0.10632263,2351.8,2350.9,1.0460781]
[1725959800648,0.10632263,2351.8,2350.9,0.38045365]
[1725959801149,0.10632263,2351.8,2350.9,1.04606506]
[1725959801344,1.13989447,2351.8,2350.8,0.55]
[1725959801598,0.10632276,2351.7,2350.9,3.92015593]
[1725959801946,0.10632276,2351.7,2350.9,3.25453647]
[1725959802143,0.69729426,2351.7,2350.9,3.63499012]
[1725959803388,0.10632276,2351.7,2350.9,4.30058906]
[1725959803594,3.10631342,2351.9,2351.1,3.25453647]
[1725959803753,0.10631342,2351.9,2351.3,3.25453647]
[1725959804090,0.10631342,2351.9,2351.4,0.4190048]
[1725959804385,0.10631342,2351.9,2351.4,0.41900479]
[1725959804760,0.10630379,2352.0,2351.4,0.41900479]
[1725959805586,0.10630379,2352.0,2351.5,0.08504306]
[1725959805788,0.89391621,2352.0,2351.1,3.92005437]
[1725959805973,3.10630379,2352.0,2351.2,0.55]
[1725959806349,3.0,2352.1,2351.1,3.25453647]
[1725959806547,0.1063091,2352.0,2351.2,0.39200544]
[1725959806753,0.1063091,2352.0,2351.1,3.25453647]
[1725959806991,1.87612949,2352.0,2351.1,3.25453647]
[1725959807149,0.1063091,2352.0,2351.1,3.25453647]
[1725959807592,0.1063091,2352.0,2351.2,0.0850521]
[1725959807795,1.18417454,2352.0,2351.2,0.41901096]
[1725959808093,0.1063091,2352.0,2351.3,3.33958849]
[1725959808290,0.1063091,2352.0,2351.2,0.33395886]
[1725959808291,3.0,2352.1,2351.5,3.25453647]
[1725959809162,3.0,2352.1,2351.3,3.92005437]
[1725959809361,3.0,2352.1,2351.4,0.55]
[1725959809586,3.0,2352.1,2351.5,0.38045365]
[1725959811200,3.0,2352.1,2351.2,0.6655179]
[1725959811201,0.10629318,2352.0,2351.2,0.6655179]
[1725959811355,0.10629318,2352.0,2351.0,0.6655179]
[1725959811550,0.10629318,2352.0,2350.9,7.30050802]
[1725959811755,0.89390454,2352.0,2350.9,6.63499012]
[1725959812057,0.89390454,2352.0,2350.9,7.30050802]
[1725959812254,0.89390454,2352.0,2351.0,0.6655179]
[1725959812493,0.56637249,2351.9,2351.1,3.25453647]
[1725959812653,0.10632235,2351.8,2351.1,3.25453647]
[1725959813249,0.10632235,2351.8,2351.0,0.4300508]
[1725959814002,0.10632235,2351.8,2350.9,1.04606711]
[1725959814185,0.10632235,2351.8,2350.8,8.14561346]
[1725959814354,0.10632235,2351.8,2350.9,0.66561346]
[1725959815091,0.10632235,2351.8,2350.9,3.92014993]
[1725959815265,0.10632235,2351.8,2351.0,1.22507511]
[1725959815861,0.10632235,2351.8,2351.0,1.14001499]
[1725959816585,0.10632235,2351.8,2351.0,1.22507499]
[1725959817154,0.10632235,2351.8,2351.1,0.66556288]
[1725959817361,0.10632235,2351.8,2351.2,0.08505885]
[1725959817667,0.10632235,2351.8,2351.1,3.25453647]
[1725959817868,0.10632235,2351.8,2351.2,0.52450466]
[1725959818203,0.10632235,2351.8,2351.3,0.08504956]
[1725959818726,3.10631175,2351.9,2351.3,3.33958603]
[1725959818930,0.10631175,2351.9,2351.3,3.33958603]
[1725959819133,0.10631175,2351.9,2351.4,0.3339586]
[1725959822893,0.10631175,2351.9,2351.1,3.25453647]
[1725959823105,0.10631175,2351.9,2351.2,1.7303603]
[1725959823322,0.10631175,2351.9,2351.1,3.25453647]
[1725959823323,0.10631175,2351.9,2351.3,0.66551652]
[1725959823495,0.10631175,2351.9,2351.4,0.66551645]
[1725959823695,4.76982039,2352.1,2351.2,0.63945515]
[1725959823696,1.87612651,2352.0,2351.2,0.63945515]
[1725959823897,1.87612651,2352.0,2351.3,1.05494045]
[1725959824237,1.87612651,2352.0,2351.3,0.38939916]
[1725959825611,1.76982039,2351.9,2351.3,0.38939916]
[1725959825934,1.76982039,2351.9,2351.0,1.14001499]
[1725959825935,0.10630739,2351.8,2351.0,1.14001499]
[1725959826150,0.10630739,2351.8,2351.1,1.21555852]
[1725959826315,0.10630739,2351.8,2351.2,0.66555852]
[1725959826517,0.10630739,2351.8,2351.3,0.66555852]
[1725959826843,0.10630739,2351.8,2351.1,0.55]
[1725959827227,0.10630739,2351.8,2351.2,0.66555448]
[1725959827410,1.87612971,2351.9,2351.2,0.23555695]
[1725959827615,4.87612657,2352.0,2351.3,3.25453647]
[1725959827837,4.87612657,2352.0,2351.4,0.34900934]
[1725959828648,3.10630618,2352.0,2351.4,0.34900934]
[1725959828963,1.87612657,2352.0,2351.4,0.34900934]
[1725959829148,4.87612657,2352.0,2351.4,0.34900934]
[1725959829723,4.87612657,2352.0,2351.2,0.23555695]
[1725959830522,1.76982039,2352.1,2351.3,3.33958143]
[1725959830843,4.76982039,2352.1,2351.3,3.33958143]
[1725959831033,4.76982039,2352.1,2351.4,0.35751384]
[1725959831235,4.76982039,2352.2,2351.5,3.33957393]
[1725959831423,1.76982039,2352.1,2351.5,3.33957393]
[1725959831620,4.87611615,2352.2,2351.5,3.33957393]
[1725959831865,1.76982039,2352.1,2351.6,0.33395739]
[1725959832074,1.87611391,2352.3,2351.7,0.08503482]
[1725959832281,1.76982039,2352.2,2351.7,0.08503482]
[1725959832559,1.87611048,2352.2,2351.7,0.08503482]
[1725959833761,0.10629009,2352.2,2351.7,0.08503482]
[1725959833969,1.87611048,2352.2,2351.7,0.08503482]
[1725959834139,1.87611051,2352.3,2351.7,0.08503482]
[1725959834334,1.87611051,2352.3,2351.7,3.33957129]
[1725959834593,1.76982039,2352.4,2351.9,3.25453647]
[1725959834749,1.87611048,2352.5,2351.7,3.25453647]
[1725959835092,1.87611048,2352.5,2351.8,0.35884939]
[1725959835731,1.76982039,2352.4,2351.6,0.33395739]
[1725959835971,0.10629026,2352.3,2351.6,0.33395739]
[1725959839738,0.10628257,2352.7,2351.7,3.88956252]
[1725959839938,0.10628257,2352.7,2351.8,0.70737517]
[1725959840244,1.87346214,2352.7,2351.8,0.70737517]
[1725959840449,1.87346214,2352.7,2351.8,0.62235199]
[1725959840643,4.87346214,2352.7,2351.9,0.08502318]
[1725959840843,4.87346214,2352.7,2351.9,2.48921434]
[1725959841048,4.87346214,2352.7,2351.9,2.40419116]
[1725959841249,5.50976921,2352.7,2351.8,0.62235199]
[1725959841776,8.76430568,2352.7,2351.8,0.62235199]
[1725959841935,8.76430568,2352.7,2351.7,19.53]
[1725959843454,4.87346214,2352.7,2351.7,19.53]
[1725959843774,4.87346214,2352.7,2351.9,3.25453647]
[1725959843944,4.87346214,2352.7,2352.0,0.08502208]
[1725959844139,4.87346214,2352.7,2352.0,0.41897794]
[1725959846047,5.50976921,2352.7,2351.8,19.53]
[1725959846479,4.87346214,2352.7,2351.8,19.53]
[1725959849081,3.0,2352.6,2351.8,19.53]
[1725959849244,0.10628702,2352.5,2351.9,3.02645365]
[1725959849788,0.10628702,2352.5,2351.8,19.53]
[1725959850077,3.36082349,2352.5,2351.8,19.53]
[1725959850283,3.0,2352.4,2351.8,19.53]
[1725959850581,0.10629429,2352.3,2351.8,19.53]
[1725959850779,0.10629429,2352.3,2351.4,27.9017486]
[1725959850978,0.10629429,2352.3,2351.5,2.92393715]
[1725959851983,1.76717957,2352.4,2351.5,2.92393715]
[1725959852192,0.10629414,2352.3,2351.5,2.92393715]
[1725959855395,1.87347371,2352.3,2351.5,2.92393715]
[1725959855699,1.87347371,2352.3,2351.4,7.48]
[1725959855700,1.87348465,2352.2,2351.4,7.48]
[1725959855994,1.87348465,2352.2,2351.2,30.26453647]
[1725959856197,3.10630508,2352.2,2351.3,5.75973342]
[1725959857801,4.87348465,2352.2,2351.3,5.75973342]
[1725959858169,4.87348465,2352.2,2351.3,4.25745365]
[1725959858769,3.10630508,2352.2,2351.3,7.51239688]
[1725959859087,3.0,2352.1,2351.4,0.70006862]
[1725959859287,0.10630402,2352.0,2351.4,0.70006862]
[1725959859489,3.10630427,2352.2,2351.5,3.25494323]
[1725959859688,0.10630427,2352.2,2351.6,0.40400553]
[1725959861368,0.10629205,2352.3,2351.7,0.08503364]
[1725959861567,0.10629205,2352.3,2351.7,0.37439824]
[1725959862412,1.87347162,2352.3,2351.7,0.37439824]
[1725959862570,4.87347162,2352.3,2351.7,0.37439824]
[1725959863301,3.10629205,2352.3,2351.7,0.37439824]
[1725959863475,0.10629205,2352.3,2351.7,0.37439824]
[1725959864134,2.36081878,2352.3,2351.4,0.70006862]
[1725959864426,1.76717957,2352.2,2351.3,19.53]
[1725959864735,1.87348884,2352.1,2351.4,3.11566918]
[1725959864938,4.87348884,2352.1,2351.4,3.11566918]
[1725959865116,4.87348884,2352.1,2351.5,1.84185309]
[1725959865311,3.10630927,2352.1,2351.5,1.84185309]
[1725959865534,0.10630927,2352.1,2351.6,0.0850398]
[1725959865739,4.87347932,2352.2,2351.6,0.0850398]
[1725959867906,4.87347162,2352.3,2351.6,0.51818361]
[1725959868147,0.10629211,2352.2,2351.6,0.51818361]
[1725959868314,0.10629211,2352.2,2351.6,0.6032173]
[1725959868641,0.10629211,2352.2,2351.7,0.57000136]
[1725959870254,0.10629213,2352.3,2351.7,0.57000136]
[1725959870458,1.8734717,2352.3,2351.7,0.57000136]
[1725959870621,0.10629212,2352.2,2351.7,0.57000136]
[1725959871736,1.87347166,2352.3,2351.7,0.57000136]
[1725959874178,1.76717957,2352.2,2351.7,0.57000136]
[1725959874584,1.87347166,2352.3,2351.7,0.57000136]
[1725959875238,1.76717957,2352.2,2351.7,0.57000136]
[1725959875878,4.76717957,2352.2,2351.7,0.57000136]
[1725959877354,3.0,2352.2,2351.7,0.57000136]
[1725959877561,4.87347166,2352.3,2351.7,0.57000136]
[1725959877871,4.87347166,2352.3,2351.7,0.65503262]
[1725959878380,4.87347166,2352.3,2351.8,0.08503129]
[1725959878590,1.87347166,2352.3,2351.7,0.65503267]
[1725959878950,1.87347166,2352.3,2351.8,0.26522263]
[1725959879519,1.87347166,2352.3,2351.7,0.57000136]
[1725959880212,1.87347166,2352.3,2351.7,0.6550327]
[1725959880801,1.87347166,2352.3,2351.7,0.57000136]
[1725959881003,1.76717957,2352.2,2351.7,0.57000136]
[1725959881200,1.76717957,2352.2,2351.6,2.01997385]
[1725959881408,1.87347166,2352.3,2351.7,0.08503137]
[1725959881594,1.87347166,2352.3,2351.7,2.40050965]
[1725959881801,1.87347166,2352.3,2351.7,2.48554102]
[1725959882183,1.87347166,2352.3,2351.7,2.40050965]
[1725959882377,0.10629209,2352.3,2351.7,2.48554104]
[1725959882581,1.76717957,2352.3,2351.8,1.58682163]
[1725959882786,4.87346881,2352.4,2351.9,0.39873313]
[1725959883214,4.76717957,2352.4,2352.0,0.08502769]
[1725959883419,4.76717957,2352.4,2352.0,1.58681793]
[1725959883625,0.10628146,2352.7,2352.0,1.58681793]
[1725959883626,1.76717957,2352.6,2352.2,1.50179024]
[1725959883995,1.76717957,2352.6,2352.0,1.50179024]
[1725959884299,1.76717957,2352.4,2351.9,0.39873313]
[1725959884499,0.10628929,2352.3,2351.7,2.40050965]
[1725959884788,1.87346886,2352.3,2351.7,2.40050965]
[1725959884991,1.87346886,2352.3,2351.8,2.03882901]
[1725959884992,0.1062893,2352.2,2351.8,2.03882901]
[1725959886587,0.1062893,2352.2,2351.8,3.54061925]
[1725959886784,1.87346887,2352.3,2351.8,1.50179024]
[1725959887036,0.1062893,2352.3,2351.8,1.50179024]
[1725959889198,1.76717957,2352.5,2351.9,0.75039975]
[1725959889408,1.76717957,2352.5,2352.0,0.225219]
[1725959889704,0.1062798,2352.4,2352.0,0.225219]
[1725959890104,1.87345937,2352.4,2352.0,0.225219]
[1725959890287,1.87345937,2352.4,2351.9,0.6653684]
[1725959890909,1.87345937,2352.4,2351.8,1.50179024]
[1725959891427,1.76717957,2352.4,2351.8,1.50179024]
[1725959891728,4.87345532,2352.6,2352.0,1.50179024]
[1725959891925,1.87345532,2352.6,2352.1,0.08502061]
[1725959892133,1.76717957,2352.6,2352.1,0.08502061]
[1725959892425,3.0,2352.7,2352.2,1.50179024]
[1725959892635,4.87345031,2352.8,2352.3,0.08501663]
[1725959892830,4.87345031,2352.8,2352.3,0.75027672]
[1725959893036,1.87345031,2352.8,2352.2,1.88437642]
[1725959893233,1.87345031,2352.8,2352.3,0.29488034]
[1725959893620,0.10627074,2352.8,2352.3,0.29488034]
[1725959894379,3.90527688,2352.7,2351.8,8.95391972]
[1725959894580,0.10627978,2352.6,2351.9,1.50179024]
[1725959894781,0.10627978,2352.6,2352.0,1.045571]
[1725959894988,4.87345157,2352.7,2352.1,1.50179024]
[1725959895139,3.106272,2352.7,2352.2,0.26323803]
[1725959895345,0.106272,2352.7,2352.2,0.34825315]
[1725959896384,0.106272,2352.7,2352.2,0.26323803]
[1725959897485,0.106272,2352.7,2352.2,0.34825316]
[1725959898028,0.10626847,2352.8,2352.2,0.34825316]
[1725959899819,0.81499258,2352.8,2352.1,1.50179024]
[1725959900026,3.81499258,2352.8,2352.0,1.045571]
[1725959900181,5.58217215,2352.8,2351.9,1.50179024]
[1725959900384,5.58217215,2352.8,2352.0,1.11644906]
[1725959900720,4.87344804,2352.8,2352.0,1.11644906]
[1725959901011,3.10626847,2352.8,2352.1,1.50179024]
[1725959901217,0.10626847,2352.8,2352.2,0.08501513]
[1725959901522,1.87344804,2352.8,2352.2,0.35534057]
[1725959901702,4.87344804,2352.8,2352.2,0.35534057]
[1725959901903,3.10626847,2352.8,2352.2,0.35534057]
[1725959902105,0.10626847,2352.8,2352.2,0.35534057]
[1725959902425,1.87344804,2352.8,2352.2,0.35534057]
[1725959902720,4.87344804,2352.8,2352.3,0.08501474]
[1725959903229,0.10626847,2352.8,2352.3,0.08501474]
[1725959903524,0.10626847,2352.8,2352.2,0.35533989]
[1725959904716,0.81471286,2352.8,2352.0,1.11644906]
[1725959904916,3.81471286,2352.8,2351.8,7.48]
[1725959905696,3.81471286,2352.8,2351.9,1.50179024]
[1725959906021,3.10626847,2352.8,2351.9,1.50179024]
[1725959907318,3.10626847,2352.8,2352.0,0.08502202]
[1725959907518,3.0,2352.7,2351.9,1.50179024]
[1725959907824,0.10626847,2352.8,2352.0,0.55]
[1725959908011,0.10626847,2352.8,2352.0,1.51906174]
[1725959909324,3.10626847,2352.8,2352.0,1.51906174]
[1725959911622,3.10626847,2352.8,2352.0,3.02085198]
[1725959911838,3.10626847,2352.8,2352.1,0.08501583]
[1725959911982,3.10626847,2352.8,2352.1,0.38146907]
[1725959912323,3.10626847,2352.8,2352.1,0.46648494]
[1725959912625,1.87344625,2352.9,2352.2,1.50179024]
[1725959912919,1.76717957,2352.9,2352.3,0.08500689]
[1725959913084,1.76717957,2352.9,2352.3,0.33683351]
[1725959914522,1.76717957,2352.9,2352.3,0.25182662]
[1725959916640,3.10626668,2353.0,2352.3,0.25182662]
[1725959922221,4.87344625,2353.0,2352.3,0.25182662]
[1725959922423,3.10626668,2353.0,2352.3,0.25182662]
[1725959922909,1.76717957,2353.2,2352.6,1.50179024]
[1725959923112,3.0,2353.2,2352.7,0.08499852]
[1725959923650,0.10624815,2353.3,2352.7,0.08499852]
[1725959924055,1.87342772,2353.3,2352.6,1.50179024]
[1725959924456,4.23374757,2353.3,2352.3,9.73182662]
[1725959924688,4.23374757,2353.3,2352.3,11.23361686]
[1725959924689,4.76717957,2353.2,2352.3,11.23361686]
[1725959924890,0.10625396,2353.1,2352.3,11.23361686]
[1725959925087,0.10625396,2353.1,2352.4,1.17836169]
[1725959930281,1.50179024,2352.9,2352.3,7.48]
[1725959930616,0.10627387,2352.8,2352.3,7.48]
[1725959930820,1.87345344,2352.8,2352.3,7.48]
[1725959930976,0.66480603,2352.7,2352.3,7.48]
[1725959931179,0.66480603,2352.7,2351.9,8.98179024]
[1725959931378,0.10627385,2352.7,2351.9,8.98179024]
[1725959932687,0.10627385,2352.7,2351.9,7.48]
[1725959932903,0.10627385,2352.7,2352.0,1.50179024]
[1725959933086,1.87345341,2352.8,2352.0,1.50179024]
[1725959933293,1.87345341,2352.8,2351.9,7.48]
[1725959933294,3.3752478,2352.7,2351.9,7.48]
[1725959933507,3.26896981,2352.5,2351.9,7.48]
[1725959933812,0.10628796,2352.4,2351.9,7.48]
[1725959935077,4.87346753,2352.4,2351.9,7.48]
[1725959937496,1.50179024,2352.3,2351.7,19.53]
[1725959937696,0.10629493,2352.2,2351.8,19.53]
[1725959943520,0.10629493,2352.2,2351.6,19.53]
[1725959943715,0.10629493,2352.2,2351.7,2.701]
[1725959950373,0.10630097,2352.3,2351.8,1.58683102]
[1725959950863,0.10628799,2352.4,2351.8,1.58683102]
[1725959951080,0.10628799,2352.4,2351.9,0.4287831]
[1725959951649,1.87346878,2352.6,2351.9,0.4287831]
[1725959951852,3.10628921,2352.6,2351.9,0.4287831]
[1725959952266,1.87346878,2352.6,2351.9,0.4287831]
[1725959952435,4.87346878,2352.6,2351.9,0.4287831]
[1725959953669,3.0,2352.5,2351.9,0.4287831]
[1725959953866,0.10629032,2352.4,2351.9,0.4287831]
[1725959954367,0.1062903,2352.5,2352.0,0.08503224]
[1725959954667,0.1062903,2352.5,2351.9,0.4287831]
[1725959955369,0.10628186,2352.6,2351.9,0.4287831]
[1725959956150,0.10628186,2352.6,2351.8,1.50179024]
[1725959957157,1.6080721,2352.6,2351.8,1.50179024]
[1725959958285,0.10628186,2352.6,2352.0,1.50179024]
[1725959958485,0.10628186,2352.6,2352.1,0.08501897]
[1725959958639,0.10627366,2352.7,2352.1,0.08501897]
[1725959959653,0.10627365,2352.8,2352.1,0.08501897]
[1725959960479,0.10627365,2352.8,2352.0,1.50179024]
[1725959960799,1.60806389,2352.8,2352.0,1.50179024]
[1725959961081,0.10627418,2352.7,2352.0,1.50179024]
[1725959961281,0.10627418,2352.7,2351.8,1.50179024]
[1725959961628,0.10627418,2352.7,2351.9,0.21671422]
[1725959966754,0.10627418,2352.7,2352.0,1.50179024]